Cogmind - Beta 14 @@@ ROGUE MODE // 2024.10.03 @ 15:58:59 Player: BionicBot Result: Destroyed by Y-45 Defender with Beam Rifle Performance ------------- Evolutions (0) 0 Regions Visited (2) 400 Robots Destroyed (25) 125 Value Destroyed (426) 426 Prototype IDs (0) 0 Alien Tech Used (0) 0 Bonus (0) 0 TOTAL SCORE: 951 Bonus ------- None Cogmind --------- Core Integrity 0/250 Matter 283/300 Energy 125/125 System Corruption 2% Temperature Cool (9) Movement Rolling (80) Location -10/Mines Parts ------- > --- POWER (1) -------- Light Ion Engine > --- PROPULSION (2) --- Wheel Wheel > --- UTILITY (2) ------ Medium Storage Unit > --- WEAPON (2) ------- Beam Cannon Enhanced Flamer > --- INVENTORY (10) --- Light Ion Engine Seismic Detector Beam Cannon Light Assault Rifle Light Assault Rifle Peak State ------------ > --- POWER ------------ Light Ion Engine > --- PROPULSION ------- Wheel Wheel > --- UTILITY ---------- Medium Storage Unit > --- WEAPON ----------- Beam Cannon Enhanced Flamer > --- INVENTORY -------- Light Ion Engine Seismic Detector Beam Cannon Light Assault Rifle Light Assault Rifle [Rating: 8] Favorites ----------- Power Light Ion Engine Engine Light Ion Engine Propulsion Light Treads Treads Light Treads Wheel Wheel Utility Medium Storage Unit Storage Medium Storage Unit Weapon Light Assault Rifle Energy Gun Small Laser Energy Cannon Beam Cannon Ballistic Gun Light Assault Rifle Special Weapon Enhanced Flamer Build | -11 -10 -10 ------- Run | Yrd Mat Min Slots Evolved . | . . . Power . | . . . Propulsion . | . . . Utility . | . . . Weapon . | . . . Parts Attached 13 | 6 4 3 Power 2 | 1 1 . Engine 2 | 1 1 . Core . | . . . Reactor . | . . . Propulsion 4 | 2 1 1 Treads 2 | 2 . . Leg . | . . . Wheel 2 | . 1 1 Hover . | . . . Flight . | . . . Utility 2 | 1 1 . Device . | . . . Storage 2 | 1 1 . Processor . | . . . Hackware . | . . . Protection . | . . . Artifact . | . . . Weapon 5 | 2 1 2 Energy Gun 1 | 1 . . Energy Cannon 1 | . . 1 Ballistic Gun 2 | 1 1 . Ballistic Cannon . | . . . Launcher . | . . . Special Weapon 1 | . . 1 Impact Weapon . | . . . Slashing Weapon . | . . . Piercing Weapon . | . . . Special Melee Weapon . | . . . Unidentified Prototypes . | . . . Parts Lost 4 | . 3 1 Power 1 | . 1 . Propulsion 2 | . 1 1 Utility . | . . . Weapon 1 | . 1 . Highest Loss Streak 2 | . 2 1 To Critical Strikes . | . . . Average Slot Usage (%) 82 | . 83 79 Engine 12 | . 12 14 Treads 16 | . 19 . Wheel 10 | . 8 21 Storage 14 | . 14 14 Energy Gun 3 | . 4 . Energy Cannon 2 | . . 14 Ballistic Gun 21 | . 23 14 Peak Build Rating 8 | 6 6 8 Average Rating 5 | 5 5 5 On Entrance 4 | . 6 6 Naked Turns . | . . . Heaviest Build 18 | 10 15 18 Greatest Support 40 | 40 40 20 Greatest Overweight (x) 1 | 1 1 1 Average Overweight (x) . | . . . Largest Inventory Capacity 10 | 8 10 10 Average Capacity 9 | 7 9 10 Most Carried 6 | 4 5 6 Average Carried 3 | 2 3 5 Final Capacity 10 | 8 10 10 Final Carried 5 | 4 5 5 Class Distribution -------------------- 100% | Mutant Dominant Class ---------------- Mutant | -10/Materials Mutant | -10/Mines Resources | -11 -10 -10 ----------- Run | Yrd Mat Min Matter Collected 447 | 280 141 26 Remotely . | . . . Salvage Created 796 | 157 475 164 Parts 52 | 14 32 6 Haulers Intercepted 2 | . 2 . Recyclers Shooed 1 | 1 . . Parts Field Recycled . | . . . Retrieved Matter . | . . . Parts Self-Destructed . | . . . Prevented . | . . . Kills | -11 -10 -10 ------- Run | Yrd Mat Min Combat Hostiles Destroyed 14 | . 12 2 Guns 13 | . 12 1 Cannons 1 | . . 1 Classes Destroyed 7 | 2 4 1 Worker 1 | . . 1 Tunneler 5 | 5 . . Hauler 2 | . 2 . Recycler 2 | 1 . 1 Watcher 1 | . 1 . Swarmer 6 | . 6 . Grunt 8 | . 6 2 Best Kill Streak 3 | 2 3 2 Combat Bots Only 3 | . 3 2 Max Kills in Single Turn 1 | 1 1 1 Gunslinging . | . . . Exploded . | . . . Melee . | . . . Uniques/NPCs Destroyed . | . . . Combat | -11 -10 -10 -------- Run | Yrd Mat Min Hostile Shots Fired 95 | . 85 10 Missed 17 | . 17 . Damage Taken 878 | . 742 136 Core 258 | . 210 48 Absorbed by Shields . | . . . Core Remaining (%) 100 | 100 . . Volleys Fired 100 | 20 70 10 Largest 2 | 2 2 2 Hottest 80 | 60 60 80 Shots Fired 199 | 40 138 21 Gun 189 | 40 138 11 Cannon 10 | . . 10 Launcher . | . . . Special . | . . . Kinetic 121 | 20 90 11 Thermal 78 | 20 48 10 Explosive . | . . . Electromagnetic . | . . . Robot Hit Streak 9 | 9 8 7 Robot Miss Streak 3 | 2 3 1 Penetration Max . | . . . Secondary Targets 2 | . 2 . Max Gunslinging Chain 1 | . 1 . Shots Hit Robots 130 | 27 86 17 Core Hits 49 | 9 33 7 Critical Kills . | . . . Critical Parts Destroyed 1 | . 1 . Critical Strikes 1 | . 1 . Destroy 1 | . 1 . Melee Attacks . | . . . Impact . | . . . Slashing . | . . . Piercing . | . . . Sneak Attacks . | . . . Combat Hostiles . | . . . Follow-up Attacks . | . . . Damage Inflicted 1223 | 252 763 208 Guns 1102 | 252 763 87 Cannons 121 | . . 121 Explosions . | . . . Melee . | . . . Ramming . | . . . Kinetic 633 | 109 437 87 Thermal 590 | 143 326 121 Explosive . | . . . Electromagnetic . | . . . Impact . | . . . Slashing . | . . . Piercing . | . . . Highest Corruption 2 | . 2 2 Average Corruption 1 | . 1 2 Corruption Purged . | . . . Corruption Blocked . | . . . Effects 11 | . 9 2 Message Errors 1 | . 1 . Matter Fused 4 | . 3 1 Heat Flow Errors 1 | . 1 . Energy Discharges 1 | . 1 . Parts Fused 1 | . 1 . Data Loss (minor) 2 | . 2 . Misfires 1 | . . 1 Overload Shots . | . . . Overflow Damage . | . . . Projectiles . | . . . Explosions . | . . . Melee . | . . . Knockbacks . | . . . Impact . | . . . Kinetic . | . . . Secondary . | . . . Self-Inflicted Damage . | . . . Shots . | . . . Rammed . | . . . Targets Rammed . | . . . Kicked . | . . . Crushed . | . . . Highest Temperature 264 | 40 264 226 Average Temperature 52 | 17 51 97 Received Heat Transfer 252 | . 177 75 Siege Activations . | . . . Robots Corrupted . | . . . Combat Hostiles . | . . . Parts Fried . | . . . Impact Corruptions . | . . . Robots Melted . | . . . Combat Hostiles . | . . . Parts Melted 2 | 1 . 1 Heat Transferred 1334 | 325 750 259 Parts Sabotaged . | . . . Parts Stolen . | . . . Parts Stripped . | . . . Power Chain Reactions . | . . . Alert | -11 -10 -10 ------- Run | Yrd Mat Min Peak Influence 288 | 30 288 60 Initial 19 | . 19 . Average 77 | 14 95 51 Maximum Alert Level 1 | . 1 . Low Security (%) 82 | 100 75 100 Level 1 17 | . 24 . Level 2 . | . . . Level 3 . | . . . Level 4 . | . . . Level 5 . | . . . High Security . | . . . Max Security . | . . . Squads Dispatched 2 | . 2 . Investigation 2 | . 2 . Extermination . | . . . Reinforcement . | . . . Assault . | . . . Garrison . | . . . Intercept . | . . . Searches Triggered . | . . . Construction Impeded . | . . . Haulers Reinforced . | . . . Active Scanning Responses . | . . . Cargo Convoy Interrupts . | . . . Stealth | -11 -10 -10 --------- Run | Yrd Mat Min Distress Signals 2 | . 2 . Communications Jammed . | . . . Distress Signals . | . . . Times Spotted 26 | . 22 4 Peak Tracking Total 4 | . 4 2 Tactical Retreats 1 | . 1 . Traps | -11 -10 -10 ------- Run | Yrd Mat Min Traps Triggered 4 | . 4 . Indirectly . | . . . Trap Hack Attempts . | . . . Triggered . | . . . Disarmed . | . . . Reprogrammed . | . . . Reused . | . . . Traps Extracted . | . . . Installed . | . . . Triggered . | . . . Machines | -11 -10 -10 ---------- Run | Yrd Mat Min Machines Disabled . | . . . Max in Single Turn . | . . . Machines Repaired . | . . . Machines Dismantled . | . . . Machines Sabotaged . | . . . Overloaded Fab Kills . | . . . Hacking | -11 -10 -10 --------- Run | Yrd Mat Min Machines Accessed 8 | . 8 . Terminals 6 | . 6 . Fabricators . | . . . Repair Stations . | . . . Recycling Units 2 | . 2 . Scanalyzers . | . . . Garrison Access . | . . . Total Hacks 28 | . 28 . Successful 18 | . 18 . Failed 10 | . 10 . Catastrophic 1 | . 1 . Database Lockouts . | . . . Manual 25 | . 25 . Terminals 24 | . 24 . Fabricators . | . . . Repair Stations . | . . . Recycling Units 4 | . 4 . Scanalyzers . | . . . Garrison Access . | . . . Terminal Hacks 2 | . 2 . Part Schematic 1 | . 1 . Unreport Threat 1 | . 1 . Fabricator Hacks . | . . . Repair Station Hacks . | . . . Recycling Unit Hacks . | . . . Scanalyzer . | . . . Garrison Access Hacks . | . . . Unauthorized Hacks 14 | . 14 . Terminals 12 | . 12 . Botnet 5 | . 5 . Operators 1 | . 1 . Skim 6 | . 6 . Fabricators . | . . . Repair Stations . | . . . Recycling Units 2 | . 2 . Reject 1 | . 1 . Mask 1 | . 1 . Scanalyzers . | . . . Garrison Access . | . . . Data Cores Recovered . | . . . Used . | . . . Hacking Detections 6 | . 6 . Full Trace Events 1 | . 1 . Feedback Events 1 | . 1 . Corruption 1 | . 1 . Feedback Blocked . | . . . Robot Schematics Acquired . | . . . Robots Built . | . . . Authchips . | . . . Time . | . . . Total Robot Build Rating . | . . . Part Schematics Acquired 1 | . 1 . Parts Built . | . . . Authchips . | . . . Time . | . . . Total Part Build Rating . | . . . Parts Repaired . | . . . Time . | . . . Parts Recycled . | . . . Recycled Matter . | . . . Retrieved Matter . | . . . Retrieved Components . | . . . Parts Scanalyzed . | . . . Part Schematics Acquired . | . . . Parts Damaged . | . . . Bothacking | -11 -10 -10 ------------ Run | Yrd Mat Min Used RIF Installer . | . . . Robots Hacked . | . . . Non-combat . | . . . Combat . | . . . Robot Hacks Applied . | . . . Relay Couplers Released . | . . . Fabnet Peak Effective % . | . . . Robots Rewired . | . . . Allies Hacked . | . . . Hacks Repelled . | . . . Allies | -11 -10 -10 -------- Run | Yrd Mat Min Total Allies . | . . . Largest Group . | . . . Highest-Rated Group . | . . . Highest-Rated Ally . | . . . Total Orders . | . . . Ally Attacks . | . . . Total Damage . | . . . Kills . | . . . Allies Corrupted . | . . . Allies Melted . | . . . Intel | -11 -10 -10 ------- Run | Yrd Mat Min Robot Analysis Total . | . . . Derelict Logs Recovered 1 | . . 1 Drone Launches . | . . . Drone Recoveries . | . . . Exploration | -11 -10 -10 ------------- Run | Yrd Mat Min Turns Passed 1684 | 240 1221 223 Spaces Moved 733 | 111 411 211 Core 7 | 7 . . Treads 308 | 104 204 . Legs . | . . . Wheels 418 | . 207 211 Hover . | . . . Flight . | . . . Fastest Speed 50 | 50 95 80 Average Speed 118 | 153 127 84 Slowest Speed 160 | 160 160 95 Overloaded Moves . | . . . Propulsion Burnouts . | . . . Robots Hopped . | . . . Cave-ins Triggered . | . . . Exploration Rate (%) 45 | 7 77 51 Regions Visited 2 Branch Regions 1 Pre-discovered Areas 1 | . . 1 Known Exits Taken . | . . . Unknown Exits Taken 2 | 1 1 . Scrap Searched . | . . . Spaces Dug . | . . . Terrain Destroyed . | . . . Melee . | . . . Projectile . | . . . AOE . | . . . Terrain Rammed . | . . . Walls Destroyed . | . . . Machines Disabled . | . . . Actions | -11 -10 -10 --------- Run | Yrd Mat Min Total 1367 | 142 989 236 Wait 510 | . 499 11 Move 731 | 110 410 211 Hop . | . . . Pick Up 10 | 5 4 1 Fast Attach 8 | 6 1 1 Attach 3 | . 3 . Detach 1 | . 1 . Swap 2 | . . 2 Drop 2 | 1 1 . Fire 100 | 20 70 10 Melee . | . . . Ram . | . . . Kick . | . . . Crush . | . . . Escape Stasis . | . . . Rewire . | . . . Trap . | . . . Miscellaneous . | . . . Route ------- -11/Scrapyard -10/Materials (discovered 5 exits: *Mat x3 / [*Min] / Sub) -10/Mines (discovered 2 exits: *Mat x2) History --------- Turn | Location | Event 5 | -11/Scrapyard | Discovered new exit (range 16) 241 | -11/Scrapyard | Entered Materials 318 | -10/Materials | Build established: Mutant 407 | -10/Materials | Discovered new exit (range 14) 553 | -10/Materials | Discovered new exit (range 10) 745 | -10/Materials | Core integrity fell below 50% 861 | -10/Materials | Discovered new exit (range 11) 915 | -10/Materials | Core integrity fell below 20% 1013 | -10/Materials | Learned 4 Subcaves zone layouts 1078 | -10/Materials | Learned location of 1 exit from Recycling 1135 | -10/Materials | Learned Storage security intel 1183 | -10/Materials | Learned 2 Storage zone layouts 1222 | -10/Materials | Identified exit to Materials 1222 | -10/Materials | Identified exit to Subcaves 1299 | -10/Materials | Learned location of 2 exits from Mines 1340 | -10/Materials | Learned Storage stockpile data 1389 | -10/Materials | Learned location of 2 exits from Materials 1462 | -10/Materials | Entered Mines 1645 | -10/Mines | A weapon hastily lodged in a ceiling crevice suddenly fell to the ground 1685 | -10/Mines | Destroyed by Y-45 Defender with Beam Rifle Last Messages --------------- 01539_ Acquired 4 matter. 01542_ K-01 Serf collects debris. 01544_ A derelict is hurriedly installing traps. 01546_ KH-CMQ(g): "Hehe, this'll put a wrench in their mining defense operations..." 01546_ KH-CMQ(g) slips into the shadows. 01546_ K-01 Serf collects debris. 01554_ System corrupted: FCS attempts to trigger Lgt. Assault Rifle. 01554_ System corrupted: Lgt. Assault Rifle misfires. 01554_ K-01 Serf destroyed. 01561_ Acquired Wheel. 01562_ Acquired 11 matter. 01565_ K-01 Serf collects debris. 01627_ System corrupted: Matter fused (-7). 01634_ Acquired derelict log, extracted data. World map updated: -10/Materials. 01645_ An Enh. Flamer has been hastily shoved under some rubble with a note attached: "One is never enough." 01646_ Acquired Enh. Flamer. 01680_ Discarded Lgt. Assault Rifle. Map ----- +----------------------------------------------------+ | | | | | | | | | | | | | | | | | | | | | | | | | | | | | | | | | | | | | | | ??????????????????????####??????????????????????? | | ????????????????????##"YY"#?????????????????????? | | ????????????????????#!! !!?????????????????????? | | ??????????####??????#|! !??????????????????????? | | ?????????## ###?????# ??####????????????????? | | ????###??# ##??####//#### ####?????????????? | | ???## #### #### @ ##????????????? | | ???# ## #????????????? | | ???# ##????????????? | | ???# ##### ########?????????????? | | ???# ## ##???# ##????????????????????? | | ???## ### ###### ##????????????????????? | | ????#### ##?# #????????????????????? | | ???????####??##### #????????????????? | | ?????????????????# ### #???????????????? | | ????????????????## #?## #???????????????? | | ???????????????## ##?### #??????????????? | | ?????????????### #???#### #??????????????? | | ????????????## ##??????# #?????????????? | | ????????????# ######?? ????????????? | | ????????????# ##?# ???????????? | | ????????????# ##?# ??????????? | | ????????????## ## #??# ???????????? | | ?????????????## ####### ##??### ???????????? | | ??????????????## ##?????# ####???????????????? | | ???????????????###???????# ##??????????????? | | ?????????????????????????# #??????????????? | | ?????????????????????????# #??????????????? | | ?????????????????????????#### #??????????????? | | ????????????????????????????## ##??????????????? | | ?????????????????????????????# #???????????????? | +----------------------------------------------------+ Best States ------------- Heat Dissipation 25 Energy Generation 10 Energy Capacity 125 Matter Stores 300 Matter Capacity 300 Sight Range 16 Terrain Scan Density 10 Evasion (%) 44 Recoil Reduction 2 Item Schematics ----------------- Lrg. Storage Unit | -10/Materials | Hacked Robot Schematics ------------------ None Fabricated ------------ Nothing Alien Tech Used ----------------- None Achievements -------------- None Challenges ------------ None Game ------ Seed JunkRiotField Manual? 0 Play Time 00:12:16 Cumulative 211.4 hours Start 2024.10.03 @ 15:48:35 End 2024.10.03 @ 15:58:59 Sessions 1 Manual Loads 0 Difficulty Rogue Special Mode None Game No. 156 Rogue 156 Adventurer 0 Explorer 0 Win Type - Total 8 Types 7/0/1/0/0/0/0/0/0 Lore% 52 Gallery% 63 Achievement% 59 Wizard Run 0 Options --------- Layout 0 ASCII 0 Keyboard 1 Movement Numpad Keybinds 0 Fullscreen 2 Font 18/X11 Map View 76x50 Zoom Use 0% Tactical HUD 1 Map Filters NONE Filters NONE Steam 1 RUN: a30d8485-fb40-483c-a6f7-dfeccde11c15